fUSD/lending_fUSD_20241106
["ID","MTS","AMOUNT","RATE_DAILY","PERIOD"]
[341377997,1730859045624,-500.0,0.00038356,14]
[341377998,1730859045634,-500.0,0.00038356,14]
[341377999,1730859045643,-500.0,0.00038356,14]
[341378000,1730859045653,-500.0,0.00038356,14]
[341378001,1730859045663,-709.42,0.00038356,14]
[341378002,1730859045672,-709.42,0.00038356,14]
[341378003,1730859045682,-709.42,0.00038356,14]
[341378004,1730859045692,-564.70746963,0.00038356,14]
[341378005,1730859045703,-500.0,0.00038356,14]
[341378006,1730859045713,-500.0,0.00038356,14]
[341378007,1730859045723,-505.27354699,0.00038356,14]
[341378008,1730859045733,-500.0,0.00038356,14]
[341378009,1730859045743,-151.0,0.00038356,7]
[341378010,1730859045753,-523.60135726,0.00038356,14]
[341378011,1730859045763,-151.0,0.00038356,7]
[341378012,1730859045774,-536.19296751,0.00038356,14]
[341378013,1730859045784,-151.0,0.00038356,7]
[341378014,1730859045795,-500.0,0.00038356,14]
[341378015,1730859045807,-500.0,0.00038356,14]
[341378016,1730859045818,-175.021208,0.00038356,7]
[341378017,1730859045828,-535.3350118,0.00038356,14]
[341378018,1730859045837,-515.21895507,0.00038356,14]
[341378019,1730859045847,-507.36431818,0.00038356,14]
[341378020,1730859045856,-500.0,0.00038356,14]
[341378021,1730859045866,-500.0,0.00038356,14]
[341378022,1730859045876,-500.0,0.00038356,14]
[341378023,1730859045887,-500.0,0.00038356,14]
[341378024,1730859045896,-525.89956676,0.00038356,14]
[341378025,1730859045906,-500.0,0.00038356,14]
[341378026,1730859045915,-500.0,0.00038356,14]
[341378027,1730859045924,-500.0,0.00038356,14]
[341378028,1730859045934,-316.52738563,0.00038356,14]
[341378029,1730859045944,-500.0,0.00038356,14]
[341378030,1730859045954,-500.0,0.00038356,14]
[341378031,1730859045963,-500.0,0.00038356,14]
[341378032,1730859045972,-542.95,0.00038356,14]
[341378033,1730859045982,-542.95,0.00038356,14]
[341378034,1730859045991,-542.95,0.00038356,14]
[341378035,1730859046001,-542.95,0.00038356,14]
[341378036,1730859046010,-542.95,0.00038356,14]
[341378037,1730859046019,-211.70141081,0.00038356,10]
[341378038,1730859046029,-542.95,0.00038356,14]
[341378039,1730859046038,-542.95,0.00038356,14]
[341378040,1730859046048,-544.29160886,0.00038356,14]
[341378041,1730859046057,-1000.0,0.00038356,14]
[341378042,1730859046067,-500.0,0.00038356,14]
[341378043,1730859046077,-1000.0,0.00038356,14]
[341378044,1730859046088,-500.0,0.00038356,14]
[341378045,1730859046099,-1000.0,0.00038356,14]
[341378046,1730859046110,-500.0,0.00038356,14]
[341378047,1730859046120,-500.0,0.00038356,14]
[341378048,1730859046228,-500.0,0.00038356,14]
[341378049,1730859046248,-500.0,0.00038356,14]
[341378050,1730859046258,-500.0,0.00038356,14]
[341378051,1730859046268,-500.0,0.00038356,14]
[341378052,1730859046278,-555.34342354,0.00038356,14]
[341378053,1730859046288,-500.0,0.00038356,14]
[341378054,1730859046297,-500.0,0.00038356,14]
[341378055,1730859046307,-500.0,0.00038356,14]
[341378056,1730859046318,-500.0,0.00038356,14]
[341378057,1730859046328,-500.0,0.00038356,14]
[341378058,1730859046338,-500.0,0.00038356,14]
[341378059,1730859046349,-500.0,0.00038356,14]
[341378060,1730859046359,-509.05333791,0.00038356,14]
[341378061,1730859046369,-500.0,0.00038356,14]
[341378062,1730859046379,-500.0,0.00038356,14]
[341378063,1730859046389,-3079.98,0.00038356,14]
[341378064,1730859046399,-500.0,0.00038356,14]
[341378065,1730859046409,-3079.98,0.00038356,14]
[341378066,1730859046419,-500.0,0.00038356,14]
[341378067,1730859046429,-3079.98,0.00038356,14]
[341378068,1730859046439,-3079.98,0.00038356,14]
[341378069,1730859046450,-500.0,0.00038356,14]
[341378070,1730859046461,-3079.98,0.00038356,14]
[341378071,1730859046473,-3079.98,0.00038356,14]
[341378072,1730859046483,-500.0,0.00038356,14]
[341378073,1730859046494,-3079.98,0.00038356,14]
[341378074,1730859046504,-500.0,0.00038356,14]
[341378075,1730859046516,-1177.5,0.00038356,14]
[341378076,1730859046527,-524.7555038,0.00038356,14]
[341378077,1730859046537,-1177.5,0.00038356,14]
[341378078,1730859046547,-1177.5,0.00038356,14]
[341378079,1730859046557,-500.0,0.00038356,14]
[341378080,1730859046570,-151.0,0.00038356,7]
[341378081,1730859046580,-500.0,0.00038356,14]
[341378082,1730859046589,-500.0,0.00038356,14]
[341378083,1730859046599,-151.0,0.00038356,7]
[341378084,1730859046608,-581.43858866,0.00038356,14]
[341378085,1730859046618,-151.0,0.00038356,7]
[341378087,1730859046627,-238.484698,0.00038356,7]
[341378088,1730859046636,-500.0,0.00038356,14]
[341378089,1730859046646,-508.53833876,0.00038356,14]
[341378090,1730859046655,-507.98675317,0.00038356,14]
[341378091,1730859046665,-500.0,0.00038356,14]
[341378092,1730859046675,-151.0,0.00038356,7]
[341378093,1730859046685,-973.74,0.00038356,14]
[341378094,1730859046695,-500.0,0.00038356,14]
[341378095,1730859046704,-234.91114,0.00038356,7]
[341378096,1730859046714,-500.0,0.00038356,14]
[341378097,1730859046723,-973.74,0.00038356,14]
[341378098,1730859046733,-973.74,0.00038356,14]
[341378099,1730859046743,-500.0,0.00038356,14]
[341378100,1730859046753,-167.87182792,0.00038356,14]
[341378101,1730859046763,-500.0,0.00038356,14]
[341378102,1730859046773,-502.55757596,0.00038356,14]
[341378103,1730859046783,-973.74,0.00038356,14]
[341378104,1730859046793,-500.0,0.00038356,14]
[341378105,1730859046804,-973.74,0.00038356,14]
[341378106,1730859046813,-973.74,0.00038356,14]
[341378107,1730859046825,-424.73669179,0.00038356,14]
[341378108,1730859046835,-973.74,0.00038356,14]
[341378109,1730859046846,-535.40903834,0.00038356,14]
[341378110,1730859046855,-1989.35,0.00038356,14]
[341378111,1730859046864,-1989.35,0.00038356,14]
[341378112,1730859046875,-1989.35,0.00038356,14]
[341378113,1730859046884,-508.10517087,0.00038356,14]
[341378114,1730859046893,-1989.35,0.00038356,14]
[341378115,1730859046903,-1989.35,0.00038356,14]
[341378116,1730859046912,-1989.35,0.00038356,14]
[341378117,1730859046921,-500.0,0.00038356,14]
[341378118,1730859046931,-1989.35,0.00038356,14]
[341378119,1730859046940,-507.84338845,0.00038356,14]
[341378120,1730859046949,-814.32,0.00038356,14]
[341378121,1730859046959,-500.0,0.00038356,14]
[341378122,1730859046968,-814.32,0.00038356,14]
[341378123,1730859046977,-549.71380551,0.00038356,14]
[341378124,1730859046987,-500.0,0.00038356,14]
[341378125,1730859046996,-500.0,0.00038356,14]
[341378126,1730859047005,-814.32,0.00038356,14]
[341378127,1730859047015,-500.0,0.00038356,14]
[341378128,1730859047024,-529.63603636,0.00038356,14]
[341378130,1730859047034,-500.0,0.00038356,14]
[341378132,1730859047043,-500.0,0.00038356,14]
[341378134,1730859047052,-500.0,0.00038356,14]
[341378136,1730859047061,-290.7289623,0.00038356,14]
[341378138,1730859047072,-500.0,0.00038356,14]
[341378140,1730859047082,-633.28898129,0.00038356,14]
[341378142,1730859047091,-500.0,0.00038356,14]
[341378144,1730859047100,-515.60682184,0.00038356,14]
[341378146,1730859047109,-500.0,0.00038356,14]
[341378148,1730859047119,-501.4119361,0.00038356,14]
[341378150,1730859047128,-500.0,0.00038356,14]
[341378152,1730859047137,-500.0,0.00038356,14]
[341378154,1730859047146,-500.0,0.00038356,14]
[341378156,1730859047156,-500.0,0.00038356,14]
[341378158,1730859047165,-500.0,0.00038356,14]
[341378160,1730859047174,-500.0,0.00038356,14]
[341378162,1730859047183,-500.0,0.00038356,14]
[341378164,1730859047192,-538.52203343,0.00038356,14]
[341378166,1730859047202,-500.0,0.00038356,14]
[341378168,1730859047210,-151.0,0.00038356,7]
[341378170,1730859047220,-500.0,0.00038356,14]
[341378171,1730859047229,-500.0,0.00038356,14]
[341378173,1730859047238,-151.0,0.00038356,7]
[341378175,1730859047248,-500.0,0.00038356,14]
[341378177,1730859047257,-151.0,0.00038356,7]
[341378179,1730859047266,-500.0,0.00038356,14]
[341378181,1730859047275,-500.0,0.00038356,14]
[341378183,1730859047285,-500.0,0.00038356,14]
[341378185,1730859047294,-151.0,0.00038356,7]
[341378187,1730859047304,-500.0,0.00038356,14]
[341378189,1730859047313,-500.0,0.00038356,14]
[341378191,1730859047324,-500.0,0.00038356,14]
[341378193,1730859047334,-151.0,0.00038356,7]
[341378195,1730859047343,-500.0,0.00038356,14]
[341378197,1730859047353,-500.0,0.00038356,14]
[341378199,1730859047362,-151.0,0.00038356,7]
[341378201,1730859047372,-500.0,0.00038356,14]
[341378203,1730859047381,-500.0,0.00038356,14]
[341378205,1730859047390,-155.793007,0.00038356,7]
[341378207,1730859047400,-536.75858677,0.00038356,14]
[341378209,1730859047409,-500.0,0.00038356,14]
[341378211,1730859047419,-500.0,0.00038356,14]
[341378213,1730859047428,-500.0,0.00038356,14]
[341378215,1730859047438,-500.0,0.00038356,14]
[341378217,1730859047447,-500.0,0.00038356,14]
[341378219,1730859047456,-500.0,0.00038356,14]
[341378221,1730859047466,-500.0,0.00038356,14]
[341378223,1730859047475,-500.0,0.00038356,14]
[341378225,1730859047484,-500.0,0.00038356,14]
[341378227,1730859047493,-509.81030449,0.00038356,14]
[341378229,1730859047503,-500.0,0.00038356,14]
[341378231,1730859047514,-500.0,0.00038356,14]
[341378233,1730859047523,-500.0,0.00038356,14]
[341378235,1730859047532,-500.0,0.00038356,14]
[341378237,1730859047541,-500.0,0.00038356,14]
[341378239,1730859047550,-566.3686003,0.00038356,14]
[341378240,1730859047559,-500.0,0.00038356,14]
[341378242,1730859047571,-500.0,0.00038356,14]
[341378244,1730859047580,-500.0,0.00038356,14]
[341378246,1730859047590,-500.0,0.00038356,14]
[341378248,1730859047599,-500.0,0.00038356,14]
[341378250,1730859047610,-679.69,0.00038356,14]
[341378252,1730859047619,-500.0,0.00038356,14]
[341378254,1730859047629,-500.0,0.00038356,14]
[341378256,1730859047638,-500.0,0.00038356,14]
[341378258,1730859047648,-500.0,0.00038356,14]
[341378260,1730859047657,-500.0,0.00038356,14]
[341378262,1730859047667,-509.68285211,0.00038356,14]
[341378264,1730859047676,-500.0,0.00038356,14]
[341378276,1730859047686,-444.18670427,0.00038356,14]
[341378279,1730859047793,-526.09451186,0.00038356,14]
[341378281,1730859047804,-500.0,0.00038356,14]
[341378283,1730859047814,-500.0,0.00038356,14]
[341378285,1730859047826,-500.0,0.00038356,14]
[341378287,1730859047837,-500.0,0.00038356,14]
[341378289,1730859047846,-500.0,0.00038356,14]
[341378291,1730859047855,-500.0,0.00038356,14]
[341378293,1730859047865,-398.92806164,0.00038356,14]
[341378294,1730859047875,-500.0,0.00038356,14]
[341378297,1730859047885,-506.9304037,0.00038356,14]
[341378299,1730859047894,-500.0,0.00038356,14]
[341378301,1730859047903,-520.07717163,0.00038356,14]
[341378303,1730859047912,-500.0,0.00038356,14]
[341378305,1730859047922,-500.0,0.00038356,14]
[341378307,1730859047931,-500.0,0.00038356,14]
[341378309,1730859047940,-487.01220571,0.00038356,14]
[341378311,1730859047950,-501.15522978,0.00038356,14]
[341378313,1730859047959,-500.0,0.00038356,14]
[341378315,1730859047969,-509.72690329,0.00038356,14]
[341378317,1730859047978,-500.0,0.00038356,14]
[341378319,1730859047988,-654.04,0.00038356,14]
[341378320,1730859047997,-500.0,0.00038356,14]
[341378322,1730859048006,-654.04,0.00038356,14]
[341378324,1730859048015,-654.04,0.00038356,14]
[341378326,1730859048025,-654.04,0.00038356,14]
[341378328,1730859048035,-500.0,0.00038356,14]
[341378330,1730859048045,-654.04,0.00038356,14]
[341378332,1730859048055,-500.0,0.00038356,14]
[341378334,1730859048064,-615.38,0.00038356,14]
[341378337,1730859048076,-654.04,0.00038356,14]
[341378339,1730859048086,-501.07947413,0.00038356,14]
[341378341,1730859048096,-500.0,0.00038356,14]
[341378342,1730859048106,-500.0,0.00038356,14]
[341378344,1730859048116,-654.04,0.00038356,14]
[341378347,1730859048126,-615.38,0.00038356,14]
[341378348,1730859048135,-500.0,0.00038356,14]
[341378350,1730859048145,-500.0,0.00038356,14]
[341378352,1730859048154,-615.38,0.00038356,14]
[341378354,1730859048163,-500.0,0.00038356,14]
[341378356,1730859048173,-500.0,0.00038356,14]
[341378358,1730859048182,-615.38,0.00038356,14]
[341378360,1730859048192,-500.0,0.00038356,14]
[341378362,1730859048201,-509.79732158,0.00038356,14]
[341378364,1730859048211,-500.0,0.00038356,14]
[341378366,1730859048220,-500.0,0.00038356,14]
[341378368,1730859048230,-615.38,0.00038356,14]
[341378370,1730859048240,-513.09899634,0.00038356,14]
[341378372,1730859048249,-500.0,0.00038356,14]
[341378374,1730859048258,-615.38,0.00038356,14]
[341378376,1730859048267,-615.38,0.00038356,14]
[341378378,1730859048277,-500.0,0.00038356,14]
[341378380,1730859048286,-500.0,0.00038356,14]
[341378382,1730859048295,-500.0,0.00038356,14]
[341378383,1730859048305,-504.44586121,0.00038356,14]
[341378384,1730859048314,-528.07,0.00038356,14]
[341378385,1730859048327,-500.0,0.00038356,14]
[341378386,1730859048336,-306.17519264,0.00038356,14]
[341378387,1730859048346,-956.44,0.00038356,14]
[341378388,1730859048355,-500.0,0.00038356,14]
[341378389,1730859048365,-500.0,0.00038356,14]
[341378391,1730859048375,-529.20177189,0.00038356,14]
[341378393,1730859048384,-500.0,0.00038356,14]
[341378395,1730859048394,-500.0,0.00038356,14]
[341378397,1730859048403,-509.8054564,0.00038356,14]
[341378399,1730859048413,-500.0,0.00038356,14]
[341378401,1730859048422,-500.0,0.00038356,14]
[341378403,1730859048431,-500.0,0.00038356,14]
[341378405,1730859048441,-500.0,0.00038356,14]
[341378407,1730859048451,-500.0,0.00038356,14]
[341378410,1730859048468,-500.0,0.00038356,14]
[341378412,1730859048485,-503.83753645,0.00038356,14]
[341378415,1730859048502,-500.0,0.00038356,14]
[341378418,1730859048520,-518.70877021,0.00038356,14]
[341378421,1730859048541,-500.0,0.00038356,14]
[341378424,1730859048559,-500.0,0.00038356,14]
[341378427,1730859048578,-500.0,0.00038356,14]
[341378429,1730859048594,-500.0,0.00038356,14]
[341378432,1730859048609,-500.0,0.00038356,14]
[341378435,1730859048626,-500.0,0.00038356,14]
[341378438,1730859048645,-511.46985001,0.00038356,14]
[341378440,1730859048660,-500.0,0.00038356,14]
[341378443,1730859048675,-500.0,0.00038356,14]
[341378445,1730859048691,-500.0,0.00038356,14]
[341378448,1730859048706,-592.5811945,0.00038356,14]
[341378451,1730859048722,-502.69023296,0.00038356,14]
[341378453,1730859048737,-505.90309308,0.00038356,14]
[341378456,1730859048751,-343.27577416,0.00038356,14]
[341378458,1730859048767,-512.74965946,0.00038356,14]
[341378461,1730859048782,-500.0,0.00038356,14]
[341378463,1730859048797,-509.43657761,0.00038356,14]
[341378466,1730859048812,-503.756953,0.00038356,14]
[341378468,1730859048831,-500.0,0.00038356,14]
[341378471,1730859048846,-500.0,0.00038356,14]
[341378473,1730859048861,-566.2723217,0.00038356,14]
[341378476,1730859048877,-500.0,0.00038356,14]
[341378478,1730859048892,-500.0,0.00038356,14]
[341378481,1730859048906,-500.0,0.00038356,14]
[341378483,1730859048921,-500.0,0.00038356,14]
[341378486,1730859048935,-500.0,0.00038356,14]
[341378489,1730859048950,-500.0,0.00038356,14]
[341378491,1730859048964,-502.00265886,0.00038356,14]
[341378494,1730859048978,-500.0,0.00038356,14]
[341378496,1730859048993,-500.0,0.00038356,14]
[341378499,1730859049008,-500.0,0.00038356,14]
[341378501,1730859049022,-280.2547341,0.00038356,14]
[341378504,1730859049037,-500.0,0.00038356,14]
[341378506,1730859049052,-500.0,0.00038356,14]
[341378509,1730859049068,-628.77,0.00038356,14]
[341378511,1730859049083,-508.48525645,0.00038356,14]
[341378514,1730859049099,-500.0,0.00038356,14]
[341378516,1730859049113,-518.05,0.00038356,14]
[341378519,1730859049128,-500.0,0.00038356,14]
[341378521,1730859049142,-518.05,0.00038356,14]
[341378524,1730859049157,-500.0,0.00038356,14]
[341378526,1730859049172,-518.05,0.00038356,14]
[341378529,1730859049187,-500.0,0.00038356,14]
[341378531,1730859049202,-518.05,0.00038356,14]
[341378534,1730859049217,-500.0,0.00038356,14]
[341378536,1730859049231,-500.0,0.00038356,14]
[341378539,1730859049246,-518.05,0.00038356,14]
[341378541,1730859049261,-251.38178062,0.00038356,14]
[341378544,1730859049275,-518.05,0.00038356,14]
[341378547,1730859049290,-1142.39,0.00038356,14]
[341378549,1730859049305,-500.0,0.00038356,14]
[341378552,1730859049320,-518.05,0.00038356,14]
[341378554,1730859049335,-500.0,0.00038356,14]
[341378557,1730859049350,-500.0,0.00038356,14]
[341378559,1730859049365,-1142.39,0.00038356,14]
[341378562,1730859049381,-1142.39,0.00038356,14]
[341378565,1730859049395,-500.0,0.00038356,14]
[341378567,1730859049410,-500.0,0.00038356,14]
[341378570,1730859049425,-1142.39,0.00038356,14]
[341378573,1730859049441,-1142.39,0.00038356,14]
[341378575,1730859049455,-506.81698876,0.00038356,14]
[341378578,1730859049470,-1142.39,0.00038356,14]
[341378580,1730859049485,-500.0,0.00038356,14]
[341378583,1730859049501,-1142.39,0.00038356,14]
[341378600,1730859049653,-1006.37,0.00038356,14]
[341378603,1730859049671,-330.01204789,0.00038356,14]
[341378648,1730859050129,-676.35795211,0.00038356,14]
[341378649,1730859050138,-529.47991608,0.00038356,14]
[341378654,1730859050179,-1.9,0.00038356,14]
[341378656,1730859050190,-23.09008392,0.00038356,14]
[341378658,1730859050199,-1006.37,0.00038356,14]
[341378660,1730859050210,-554.47,0.00038356,14]
[341378662,1730859050218,-500.0,0.00038356,14]
[341378664,1730859050228,-500.0,0.00038356,14]
[341378666,1730859050237,-554.47,0.00038356,14]
[341378668,1730859050247,-85.98214676,0.00038356,14]
[341378710,1730859050649,-14254.638768,0.00036338,2]
[341378721,1730859050742,-3042.72283196,0.00036338,2]
[341378723,1730859050751,-414.01785324,0.00038356,14]
[341378725,1730859050761,-500.0,0.00038356,14]
[341378727,1730859050770,-554.47,0.00038356,14]
[341378729,1730859050780,-500.0,0.00038356,14]
[341378731,1730859050789,-554.47,0.00038356,14]
[341378733,1730859050802,-500.0,0.00038356,14]
[341378735,1730859050811,-151.0,0.00038356,7]
[341378737,1730859050821,-500.0,0.00038356,14]
[341378739,1730859050830,-554.47,0.00038356,14]
[341378741,1730859050839,-500.0,0.00038356,14]
[341378743,1730859050850,-151.0,0.00038356,7]
[341378745,1730859050859,-462.34488802,0.00038356,14]
[341378747,1730859050868,-500.0,0.00038356,14]
[341378749,1730859050878,-554.47,0.00038356,14]
[341378751,1730859050888,-500.0,0.00038356,14]
[341378753,1730859050897,-55.18940991,0.00038356,14]
[341379078,1730859054403,273.38314638,0.00018123,2]
[341379129,1730859660812,150.0,0.000199,2]
[341379130,1730859663181,150.0,0.000199,2]
[341379131,1730859665788,150.0,0.000199,2]
[341379132,1730859672189,150.0,0.000199,2]
[341379133,1730859675905,150.0,0.000199,2]
[341379134,1730859677022,150.0,0.000199,2]
[341379135,1730859678646,150.0,0.000199,2]
[341379136,1730859679382,150.0,0.000199,2]
[341379137,1730859701211,254.3,0.000199,2]
[341379139,1730859909529,0.02685362,0.00016,2]
[341379140,1730859909556,1016993.77903487,0.00016,2]
[341379141,1730859909579,90811.02056488,0.00016,2]
[341379149,1730859998936,155.54,0.00015342,2]
[341379192,1730860083731,2200.12736721,0.0001,2]
[341379193,1730860086849,43406.31206791,0.00015,2]
[341379194,1730860086875,72839.61172625,0.00015,2]
[341379195,1730860125855,-209.55,0.00026986,120]
[341379196,1730860125882,-800.0,0.00026986,120]
[341379199,1730860140361,-502.38,0.00034,120]
[341379204,1730860155313,-500.62,0.00034,120]
[341379218,1730860231771,-541.99748256,0.0001892,2]
[341379219,1730860231782,-1999.999999,0.0002,2]
[341379220,1730860231791,-6389.36260644,0.000209,2]
[341379223,1730860231806,-250.0,0.00021,2]
[341379226,1730860231815,-173.75,0.00021918,2]
[341379229,1730860231825,-1217.657124,0.00023802,2]
[341379232,1730860231835,-2365.48985923,0.00023922,2]
[341379235,1730860231844,-1957.88525803,0.00023999,2]
[341379239,1730860231854,-161.57694783,0.00026886,2]
[341379241,1730860231864,-3521.05,0.00026886,2]
[341379243,1730860231873,-1735.0,0.000277,2]
[341379245,1730860231882,-174.22,0.00029115,2]
[341379247,1730860231892,-1189.72840003,0.000325,2]
[341379249,1730860231902,-168.1688409,0.00032877,2]
[341379250,1730860231911,-502.38,0.00033579,2]
[341379251,1730860231921,-835.13599966,0.00035,2]
[341379252,1730860231931,-868.95,0.00035211,2]
[341379253,1730860231941,-250.0,0.00035211,2]
[341379254,1730860231950,-187.77,0.00035266,120]
[341379255,1730860231960,-758.16,0.00035285,2]
[341379256,1730860231969,-541.1,0.00035357,2]
[341379257,1730860231979,-176.64,0.00035372,2]
[341379258,1730860231989,-250.0,0.00035507,2]
[341379259,1730860232001,-502.38,0.00035843,2]
[341379260,1730860232011,-1037.0,0.00035923,2]
[341379261,1730860232022,-194.6,0.00035923,120]
[341379262,1730860232032,-166.88,0.00036071,2]
[341379263,1730860232043,-23900.0,0.00036103,2]
[341379264,1730860232053,-250.0,0.00036119,120]
[341379265,1730860232063,-154.196,0.00036126,44]
[341379266,1730860232074,-6674.389027,0.0003616,2]
[341379267,1730860232087,-1983.770973,0.0003616,2]
[341379268,1730860232098,-242.28,0.0003616,2]
[341379269,1730860232110,-200.0,0.0003626,7]
[341379270,1730860232120,-543.52,0.00036307,2]
[341379271,1730860232129,-247.23,0.00036334,2]
[341379272,1730860232139,-241.84,0.00036334,2]
[341379273,1730860232149,-226.43,0.00036371,2]
[341379274,1730860232158,-151.5,0.00036581,2]
[341379275,1730860232170,-267.0,0.00036599,2]
[341379276,1730860232179,-300.0,0.000373,13]
[341379277,1730860232191,-700.0,0.000374,13]
[341379278,1730860232202,-174.46,0.00037422,2]
[341379279,1730860232212,-1000.0,0.000375,13]
[341379280,1730860232222,-151.24,0.00037575,2]
[341379281,1730860232233,-1400.0,0.000376,13]
[341379282,1730860232243,-151.24,0.00037604,2]
[341379283,1730860232258,-151.24,0.00037633,2]
[341379284,1730860232269,-151.24,0.00037662,2]
[341379285,1730860232280,-167.29,0.00037662,2]
[341379286,1730860232291,-151.24,0.00037691,2]
[341379287,1730860232301,-1700.0,0.000377,13]
[341379288,1730860232312,-151.24,0.0003772,2]
[341379289,1730860232322,-151.24,0.00037749,2]
[341379290,1730860232332,-151.24,0.00037777,2]
[341379291,1730860232342,-300.0,0.000378,13]
[341379292,1730860232351,-151.24,0.00037806,2]
[341379293,1730860232362,-151.24,0.00037835,2]
[341379295,1730860232371,-151.24,0.00037864,2]
[341379297,1730860232381,-151.24,0.00037893,2]
[341379299,1730860232390,-300.0,0.000379,13]
[341379301,1730860232399,-151.24,0.00037922,2]
[341379303,1730860232408,-151.24,0.00037951,2]
[341379305,1730860232418,-10000.0,0.0003797,2]
[341379307,1730860232428,-3118.6567,0.00038,2]
[341379309,1730860232437,-435.45500003,0.00038,2]
[341379311,1730860232447,-2500.0,0.00038,2]
[341379313,1730860232456,-502.68526969,0.00038073,5]
[341379314,1730860232465,-173.92067563,0.0003809,2]
[341379316,1730860232476,-500.0,0.00038099,15]
[341379318,1730860232485,-401.31354497,0.00038099,15]
[341379320,1730860232495,-289.4866,0.000381,2]
[341379322,1730860232510,-714.45709422,0.000381,2]
[341379325,1730860232523,-2776.61190578,0.000381,2]
[341379327,1730860232533,-1881.05738888,0.000381,2]
[341379335,1730860237791,-3832.00341112,0.000381,2]
[341379338,1730860237801,-198.1986,0.000381,2]
[341379341,1730860237811,-30898.2086,0.000381,2]
[341379345,1730860237821,-9725.7865,0.000381,2]
[341379348,1730860237830,-44361.20526168,0.000381,2]
[341379350,1730860237841,-2903.784888,0.000381,2]
[341379355,1730860238011,-10729.9312,0.000381,2]
[341379356,1730860238022,-1744.45288661,0.000381,2]
[341379357,1730860238033,-6612.25158562,0.000381,2]
[341379358,1730860238226,-6345.40837234,0.000381,2]
[341379359,1730860238237,-862.30374353,0.000381,2]
[341379360,1730860238248,-4572.96911794,0.000381,2]
[341379361,1730860238263,-4115.72548996,0.000381,2]
[341379362,1730860238274,-252.04997519,0.000381,2]
[341379363,1730860238285,-7457.51635288,0.000381,2]
[341379364,1730860238296,-3125.94448,0.000381,2]
[341379365,1730860238307,-1183.09863459,0.000381,2]
[341379366,1730860238318,-1321.55105597,0.000381,2]
[341379367,1730860238329,-4861.25980845,0.000381,2]
[341379440,1730860239798,-1112.48602914,0.00038,15]
[341379442,1730860239808,-16.62227013,0.000381,2]
[341379449,1730860240024,-722.166,0.000381,2]
[341379450,1730860240035,-2149.29985338,0.000381,2]
[341379496,1730860244360,-611.31759375,0.000381,2]
[341379499,1730860244375,-2922.47929214,0.000381,2]
[341379501,1730860244386,-2092.7773895,0.000381,2]
[341379503,1730860244399,-2354.56151826,0.000381,2]
[341379505,1730860244410,-371.02,0.000381,2]
[341379507,1730860244421,-386.37030309,0.000381,2]
[341379514,1730860244842,-64753.07259813,0.000381,2]
[341379523,1730860245796,-694.05311,0.000381,2]
[341379524,1730860245937,-14496.71691725,0.000381,2]
[341379525,1730860246068,-3612.2,0.000381,2]
[341379526,1730860246082,-3570.88839064,0.000381,2]
[341379527,1730860246095,-28806.78654771,0.000381,2]
[341379528,1730860246256,-72832.60587641,0.000381,2]